{"text_format":"1","workbook":"xlsx","n_sheets":2,"sheets":["Аналитика по ИБ(1)","Лист1"],"not_rendered":{"charts":0,"images":0,"macros":1,"external_links":0,"defined_names":0,"comments":0,"pivot_tables":0},"unopened":[],"bounds":{"document_bytes":16777216,"sheet_cells":100000,"rows_first":2000,"rows_last":500,"rows_between":2000,"halvings":0,"cell_chars":16384,"cell_head_chars":4096},"cells_cut":0,"cells_raw":0,"read":"whole","date_system":"1900"}

{"sheet":"Аналитика по ИБ(1)","index":0,"n_rows":17,"n_cols":6,"rows_kept":17,"cut":false,"hidden":false,"merged":[[1,0,1,4]]}
["pacienty.dbf","Дата формирования: 26.05.2016"]
["N6"]
["nib","surname","fstname","otchestvo","birthday","Диагноз клинический"]
["ГО \"35\"","ОТКАЗ - 306900","Петров Петр Петрович",15,"1985-05-01","T20.0-Любой другой текст"]
["ГО \"35\"","ОТКАЗ - 306901","Петров Петр Петрович",65,"1962-10-02","T40.5-Любой другой текст2"]
["ГО \"35\"","ОТКАЗ - 306902","Петров Петр Петрович",85,"1940-03-04","I20.0-Любой другой текст"]
["ГО \"35\"","ОТКАЗ - 306903","Петров Петр Петрович",97,"1917-08-05","I25.8-Любой другой текст69"]
["ГО \"35\"","ОТКАЗ - 306904","Петров Петр Петрович",35,"1985-05-01","I26.0-Любой другой текст9"]
["ГО \"35\"","3 - 306000","Петров Петр Петрович",81,"1962-10-02","T40.6-Любой другой текст2"]
["ГО \"35\"","3 - 306001","Петров Петр Петрович",88.2,"1985-05-01","T40.6-Любой другой текст95959"]
["ГО \"35\"","4 - 306000","Петров Петр Петрович",95.4,"1962-10-02","I20.0-Любой другой текст941991"]
["ГО \"35\"","4 - 306000","Петров Петр Петрович",102.6,"1985-05-01","I29.0-Любой другой текст9155"]
["ГО \"35\"","4 - 306001","Петров Петр Петрович",109.8,"1962-10-02","T40.6-Любой другой текст811"]
["ГО \"35\"","5 - 306000","Петров Петр Петрович",117,"1985-05-01","T40.6-Любой другой текст"]
["ГО \"35\"","5 - 306000","Петров Петр Петрович",124.2,"1962-10-02","I20.0-Любой другой текст"]
["ГО \"35\"","5 - 306001","Петров Петр Петрович",131.4,"1985-05-01","I25.8-Любой другой текст"]
[null,"Количество= 13шт."]

{"sheet":"Лист1","index":1,"n_rows":25,"n_cols":9,"rows_kept":25,"cut":false,"hidden":false,"merged":[]}
[]
[]
[]
[]
[null,null,null,null,null,null,null,null,{"$f":"IFERROR(LEFTB('Аналитика по ИБ(1)'!F4,SEARCH(\"-\",'Аналитика по ИБ(1)'!F4)-1),\"\")","v":"T20.0"}]
[null,null,null,null,null,null,null,null,{"$f":"IFERROR(LEFTB('Аналитика по ИБ(1)'!F5,SEARCH(\"-\",'Аналитика по ИБ(1)'!F5)-1),\"\")","v":"T40.5"}]
[null,null,null,null,null,null,null,null,{"$f":"IFERROR(LEFTB('Аналитика по ИБ(1)'!F6,SEARCH(\"-\",'Аналитика по ИБ(1)'!F6)-1),\"\")","v":"I20.0"}]
[null,null,null,null,null,null,null,null,{"$f":"IFERROR(LEFTB('Аналитика по ИБ(1)'!F7,SEARCH(\"-\",'Аналитика по ИБ(1)'!F7)-1),\"\")","v":"I25.8"}]
[null,null,null,null,null,null,null,null,{"$f":"IFERROR(LEFTB('Аналитика по ИБ(1)'!F8,SEARCH(\"-\",'Аналитика по ИБ(1)'!F8)-1),\"\")","v":"I26.0"}]
[null,null,null,null,null,null,null,null,{"$f":"IFERROR(LEFTB('Аналитика по ИБ(1)'!F9,SEARCH(\"-\",'Аналитика по ИБ(1)'!F9)-1),\"\")","v":"T40.6"}]
[null,null,null,null,null,null,null,null,{"$f":"IFERROR(LEFTB('Аналитика по ИБ(1)'!F10,SEARCH(\"-\",'Аналитика по ИБ(1)'!F10)-1),\"\")","v":"T40.6"}]
[null,null,null,null,null,null,null,null,{"$f":"IFERROR(LEFTB('Аналитика по ИБ(1)'!F11,SEARCH(\"-\",'Аналитика по ИБ(1)'!F11)-1),\"\")","v":"I20.0"}]
[null,null,null,null,null,null,null,null,{"$f":"IFERROR(LEFTB('Аналитика по ИБ(1)'!F12,SEARCH(\"-\",'Аналитика по ИБ(1)'!F12)-1),\"\")","v":"I29.0"}]
[null,null,null,null,null,null,null,null,{"$f":"IFERROR(LEFTB('Аналитика по ИБ(1)'!F13,SEARCH(\"-\",'Аналитика по ИБ(1)'!F13)-1),\"\")","v":"T40.6"}]
[null,null,null,null,null,null,null,null,{"$f":"IFERROR(LEFTB('Аналитика по ИБ(1)'!F14,SEARCH(\"-\",'Аналитика по ИБ(1)'!F14)-1),\"\")","v":"T40.6"}]
[null,null,null,null,null,null,null,null,{"$f":"IFERROR(LEFTB('Аналитика по ИБ(1)'!F15,SEARCH(\"-\",'Аналитика по ИБ(1)'!F15)-1),\"\")","v":"I20.0"}]
[null,null,null,null,null,null,null,null,{"$f":"IFERROR(LEFTB('Аналитика по ИБ(1)'!F16,SEARCH(\"-\",'Аналитика по ИБ(1)'!F16)-1),\"\")","v":"I25.8"}]
[null,null,null,null,null,null,null,null,{"$f":"IFERROR(LEFTB('Аналитика по ИБ(1)'!F17,SEARCH(\"-\",'Аналитика по ИБ(1)'!F17)-1),\"\")","v":""}]
[null,null,null,null,null,null,null,null,{"$f":"IFERROR(LEFTB('Аналитика по ИБ(1)'!F18,SEARCH(\"-\",'Аналитика по ИБ(1)'!F18)-1),\"\")","v":""}]
[null,null,null,null,null,null,null,null,{"$f":"IFERROR(LEFTB('Аналитика по ИБ(1)'!F19,SEARCH(\"-\",'Аналитика по ИБ(1)'!F19)-1),\"\")","v":""}]
[null,null,null,null,null,null,null,null,{"$f":"IFERROR(LEFTB('Аналитика по ИБ(1)'!F20,SEARCH(\"-\",'Аналитика по ИБ(1)'!F20)-1),\"\")","v":""}]
[null,null,null,null,null,null,null,null,{"$f":"IFERROR(LEFTB('Аналитика по ИБ(1)'!F21,SEARCH(\"-\",'Аналитика по ИБ(1)'!F21)-1),\"\")","v":""}]
[null,null,null,null,null,null,null,null,{"$f":"IFERROR(LEFTB('Аналитика по ИБ(1)'!F22,SEARCH(\"-\",'Аналитика по ИБ(1)'!F22)-1),\"\")","v":""}]
[null,null,null,null,null,null,null,null,{"$f":"IFERROR(LEFTB('Аналитика по ИБ(1)'!F23,SEARCH(\"-\",'Аналитика по ИБ(1)'!F23)-1),\"\")","v":""}]
[null,null,null,null,null,null,null,null,{"$f":"IFERROR(LEFTB('Аналитика по ИБ(1)'!F24,SEARCH(\"-\",'Аналитика по ИБ(1)'!F24)-1),\"\")","v":""}]